bitfinex-derivatives/quotes_BTCF0:USTF0_20251009
["timestamp","ask_amount","ask_price","bid_price","bid_amount"]
[1760029121201,0.67248892,119980.0,119940.0,2.44927994]
[1760029121391,0.3608,119950.0,119940.0,0.39802513]
[1760029121595,0.36085842,119950.0,119940.0,0.44197513]
[1760029121799,0.58826604,119950.0,119940.0,0.42894994]
[1760029121997,0.58826604,119950.0,119940.0,0.51228324]
[1760029122199,0.58826604,119950.0,119940.0,0.05282994]
[1760029122497,0.58826604,119950.0,119920.0,5.41096474]
[1760029122498,1.30389654,119950.0,119920.0,4.97526118]
[1760029122698,0.67248892,119930.0,119920.0,4.97526118]
[1760029122899,0.6608,119930.0,119920.0,5.39533118]
[1760029123201,0.003,119950.0,119940.0,0.1272833]
[1760029123400,0.00305842,119950.0,119940.0,1.7065633]
[1760029123604,0.3608,119990.0,119940.0,0.42007]
[1760029123799,0.67248892,119980.0,119950.0,0.01532]
[1760029123998,0.67248892,119970.0,119950.0,1.2186]
[1760029124196,0.11,119970.0,119960.0,0.42007]
[1760029124392,0.09,119970.0,119960.0,0.42007]
[1760029124695,0.09,119970.0,119960.0,0.45927]
[1760029124894,0.01555285,119980.0,119960.0,0.9033894]
[1760029125104,0.63724177,119980.0,119970.0,0.37612]
[1760029125302,0.68635285,119980.0,119970.0,0.01532]
[1760029125498,0.68635285,119980.0,119940.0,0.4880824]
[1760029125499,0.99604177,119980.0,119960.0,0.89611]
[1760029125697,0.003,119970.0,119960.0,2.84856322]
[1760029125902,0.003,119970.0,119960.0,2.8402285]
[1760029126097,0.3608,120000.0,119960.0,2.86388272]
[1760029126305,0.31368892,119980.0,119960.0,0.36913472]
[1760029126497,0.31168892,119970.0,119960.0,1.26604472]
[1760029126695,0.5408,119970.0,119960.0,0.91223]
[1760029126897,0.85248892,119970.0,119960.0,0.06823]
[1760029127098,1.31935216,119970.0,119930.0,0.04395]
[1760029127300,0.67248892,119950.0,119940.0,0.01532]
[1760029127502,0.67248892,119950.0,119940.0,0.4594533]
[1760029127503,0.27,119950.0,119940.0,0.4594533]
[1760029127705,0.00015716,120000.0,119980.0,0.05291]
[1760029128001,0.05,120000.0,119990.0,0.3608]
[1760029128204,0.77997892,120000.0,119960.0,0.3608]
[1760029128500,0.31168892,119990.0,119960.0,0.05291]
[1760029128701,0.6508,119990.0,119970.0,0.85372]
[1760029128902,0.3608,119980.0,119970.0,0.85372]
[1760029129102,0.6108,119980.0,119970.0,0.85372]
[1760029129300,0.004,120000.0,119980.0,0.05291]
[1760029129502,0.004,120000.0,119990.0,0.85388]
[1760029129701,0.004,120000.0,119970.0,0.3608]
[1760029129702,0.35317892,120000.0,119970.0,0.3608]
[1760029129897,0.3608,119990.0,119980.0,0.85412]
[1760029130096,0.5308,119990.0,119960.0,0.05291]
[1760029130297,0.3608,119980.0,119970.0,0.85384]
[1760029130503,0.95248892,119980.0,119970.0,0.85384]
[1760029130702,0.95248892,119980.0,119970.0,0.8542]
[1760029130905,0.28,119980.0,119970.0,1.56588892]
[1760029131209,0.001,119980.0,119970.0,1.615]
[1760029131508,0.002,119980.0,119970.0,1.6983124]
[1760029132414,0.002,119980.0,119970.0,1.70664712]
[1760029132702,0.686529,120020.0,120000.0,0.05291]
[1760029132902,0.67248892,120010.0,119980.0,0.41371]
[1760029133106,0.3608,119990.0,119970.0,0.75348]
[1760029133410,0.3608,120010.0,119980.0,1.21492]
[1760029133607,0.67248892,120010.0,119980.0,1.21492]
[1760029133808,0.6208,120010.0,119980.0,1.21492]
[1760029134008,0.26,120010.0,119980.0,1.26783]
[1760029134203,0.26,120010.0,119990.0,0.3608]
[1760029134404,0.26,120010.0,120000.0,0.3608]
[1760029134600,0.262,120010.0,120000.0,0.3608]
[1760029134805,0.264,120010.0,120000.0,1.26731]
[1760029135107,1.69728892,120010.0,119960.0,1.26731]
[1760029135408,0.28799544,120010.0,119990.0,0.3608]
[1760029135616,0.264,120010.0,120000.0,0.41371]
[1760029136507,0.264,120010.0,119990.0,0.3608]
[1760029136508,0.664,120010.0,119990.0,0.3608]
[1760029136805,0.6238,120010.0,119990.0,0.3608]
[1760029137205,0.263,120010.0,119990.0,0.3608]
[1760029137607,0.264,120010.0,120000.0,0.3608]
[1760029137804,0.262,120010.0,120000.0,0.3608]
[1760029138118,0.264,120010.0,120000.0,1.57991892]
[1760029138413,0.264,120010.0,120000.0,1.26823]
[1760029138607,0.97568892,120010.0,119980.0,0.3608]
[1760029138816,0.64880598,120010.0,119980.0,0.41371]
[1760029139001,0.64880598,120010.0,119990.0,0.3608]
[1760029139203,0.64880598,120010.0,119980.0,0.41371]
[1760029139505,0.9604949,120010.0,119980.0,0.3608]
[1760029139710,0.5996949,120010.0,119990.0,0.3608]
[1760029140308,0.28800598,120010.0,119990.0,0.3608]
[1760029140613,0.20958614,120000.0,119990.0,0.3608]
[1760029140915,2.13875212,120000.0,119970.0,0.3608]
[1760029141216,0.31168892,119980.0,119960.0,0.4057]
[1760029141416,0.5956949,119980.0,119960.0,0.4057]
[1760029141713,1.25388,119970.0,119960.0,0.4057]
[1760029142015,1.93696454,119970.0,119960.0,0.4057]
[1760029142206,1.62527562,119970.0,119960.0,0.4057]
[1760029143015,1.93696454,119970.0,119960.0,0.4057]
[1760029143212,1.62527562,119970.0,119960.0,0.4057]
[1760029143425,1.93696454,119970.0,119960.0,0.4057]
[1760029143710,1.93576454,119970.0,119960.0,0.4057]
[1760029143916,1.93776454,119970.0,119960.0,0.4057]
[1760029144309,1.93776454,119970.0,119940.0,0.3608]
[1760029144310,2.30056454,119970.0,119940.0,0.3608]
[1760029144514,0.31168892,119960.0,119940.0,0.3608]
[1760029144714,0.58168892,119960.0,119950.0,0.3608]
[1760029144919,1.85727409,119960.0,119950.0,0.3608]
[1760029145213,0.69398517,119960.0,119950.0,0.3608]
[1760029145410,1.85675409,119960.0,119940.0,0.3608]
[1760029145610,1.54506517,119960.0,119940.0,0.3608]
[1760029145815,1.54506517,119960.0,119930.0,0.3608]
[1760029145816,1.07248892,119950.0,119920.0,5.33606118]
[1760029146011,0.31168892,119930.0,119920.0,5.19938751]
[1760029146211,0.65567409,119930.0,119920.0,5.19938751]
[1760029146415,1.19542517,119930.0,119920.0,5.19938751]
[1760029146616,1.50695409,119930.0,119920.0,5.19938751]
[1760029147010,1.50671409,119930.0,119920.0,5.19938751]
[1760029147211,1.50671409,119930.0,119920.0,5.15020081]
[1760029147614,0.65567409,119930.0,119920.0,5.15020081]
[1760029147812,1.50803409,119930.0,119920.0,5.15020081]
[1760029148119,1.19826517,119930.0,119920.0,5.15020081]
[1760029148309,1.48596892,119930.0,119920.0,5.15020081]
[1760029148512,1.48596892,119930.0,119880.0,0.3608]
[1760029148513,2.69635784,119930.0,119880.0,0.3608]
[1760029148712,0.3608,119890.0,119860.0,0.3608]
[1760029148913,0.31168892,119870.0,119860.0,0.35389]
[1760029149117,1.14588,119870.0,119860.0,0.35389]
[1760029149318,0.60168892,119870.0,119860.0,0.35389]
[1760029149523,1.45728892,119870.0,119860.0,0.35389]
[1760029149818,1.00168892,119870.0,119860.0,0.35389]
[1760029150123,1.85748892,119870.0,119860.0,0.35389]
[1760029150422,2.23181797,119870.0,119840.0,0.40764571]
[1760029150627,0.31168892,119850.0,119840.0,0.34538261]
[1760029150813,1.21380421,119850.0,119830.0,0.3608]
[1760029151018,1.21380421,119850.0,119830.0,1.32703007]
[1760029151422,1.60881191,119850.0,119830.0,1.32703007]
[1760029151614,1.60881191,119850.0,119830.0,0.96623007]
[1760029151817,0.3950077,119840.0,119830.0,0.96180097]
[1760029152013,0.31,119840.0,119830.0,0.96180097]
[1760029152217,0.31,119840.0,119830.0,1.32260097]
[1760029152516,0.7050077,119840.0,119830.0,1.32260097]
[1760029152722,0.31,119840.0,119830.0,1.73953097]
[1760029152917,1.16488,119840.0,119830.0,1.73953097]
[1760029153318,0.312,119840.0,119830.0,1.73953097]
[1760029153519,0.7070077,119840.0,119830.0,1.73953097]
[1760029153718,0.7070077,119840.0,119830.0,1.32260097]
[1760029153719,0.312,119840.0,119830.0,1.32260097]
[1760029154219,0.314,119840.0,119830.0,1.32260097]
[1760029154518,0.314,119840.0,119830.0,2.13453867]
[1760029154712,0.314,119840.0,119830.0,2.55645097]
[1760029154910,0.314,119840.0,119830.0,2.95145867]
[1760029155319,0.314,119840.0,119830.0,2.55645097]
[1760029156015,0.314,119840.0,119830.0,1.73953097]
[1760029157019,0.314,119840.0,119830.0,1.32260097]
[1760029157217,1.16816,119840.0,119830.0,1.68340097]
[1760029157617,1.16816,119840.0,119830.0,0.96180097]
[1760029158029,0.01355484,119870.0,119830.0,1.9896577]
[1760029158321,0.29,119870.0,119860.0,1.05117613]
[1760029158720,0.29,119870.0,119860.0,1.41197613]
[1760029158924,0.30407433,119870.0,119860.0,1.41197613]
[1760029159426,2.44372,119920.0,119890.0,0.41693]
[1760029159623,1.2478077,119910.0,119900.0,0.3608]
[1760029159823,2.71612168,119910.0,119860.0,0.3608]
[1760029160024,0.3980077,119870.0,119860.0,0.3608]
[1760029160219,1.15604,119870.0,119850.0,0.3608]
[1760029160418,1.5510477,119870.0,119860.0,0.3608]
[1760029160622,1.5510477,119870.0,119850.0,0.77773]
[1760029160829,0.303,119870.0,119860.0,0.77773]
[1760029161128,1.15656,119870.0,119860.0,0.3608]
[1760029161426,2.3093677,119870.0,119820.0,1.16456687]
[1760029161726,1.15356,119870.0,119820.0,0.39068687]
[1760029161929,0.3950077,119850.0,119820.0,0.39068687]
[1760029162224,0.85248,119840.0,119810.0,5.146e-05]
[1760029162426,1.16248,119840.0,119820.0,0.39068687]
[1760029163024,1.1624,119840.0,119810.0,0.39505916]
[1760029163331,0.31,119840.0,119820.0,0.39068687]
[1760029163522,1.1624,119840.0,119820.0,0.39068687]
[1760029163718,1.16196,119840.0,119830.0,0.39068687]
[1760029164030,1.16396,119840.0,119830.0,0.39068687]
[1760029164224,1.16336,119840.0,119820.0,0.3608]
[1760029164425,0.312,119840.0,119830.0,0.39068687]
[1760029164622,0.312,119840.0,119830.0,0.75148687]
[1760029164623,1.1654,119840.0,119830.0,0.75148687]
[1760029164819,0.314,119840.0,119830.0,1.56840687]
[1760029165424,0.314,119840.0,119830.0,2.81421457]
[1760029165632,0.314,119840.0,119830.0,2.41920687]
[1760029165820,0.06665222,119870.0,119840.0,0.05521]
[1760029166024,0.3,119870.0,119850.0,0.3608]
[1760029166224,1.51132,119870.0,119850.0,0.3608]
[1760029166421,1.15052,119870.0,119860.0,0.39068687]
[1760029166728,1.15052,119870.0,119850.0,0.3608]
[1760029166921,1.15052,119870.0,119860.0,0.75148687]
[1760029167123,0.3,119870.0,119860.0,1.16840687]
[1760029167319,0.3,119870.0,119860.0,0.75148687]
[1760029167522,0.3,119870.0,119860.0,1.56840687]
[1760029167728,0.40782876,119910.0,119860.0,1.62361687]
[1760029167933,0.67782876,119910.0,119890.0,0.75148687]
[1760029168229,0.3950077,119900.0,119890.0,0.39068687]
[1760029168432,0.6408,119900.0,119890.0,0.39068687]
[1760029168728,0.28,119900.0,119890.0,0.39068687]
[1760029169031,0.28,119900.0,119890.0,0.75148687]
[1760029169222,0.6750077,119900.0,119890.0,0.69648687]
[1760029169422,0.282,119900.0,119890.0,0.69648687]
[1760029169827,0.6770077,119900.0,119890.0,0.69648687]
[1760029170231,0.282,119900.0,119890.0,0.69648687]
[1760029170433,0.74246297,119900.0,119890.0,0.69648687]
[1760029170634,0.34745527,119900.0,119890.0,0.69648687]
[1760029170924,0.6790077,119900.0,119890.0,0.69648687]
[1760029171130,0.284,119900.0,119890.0,0.69648687]
[1760029171327,0.284,119900.0,119890.0,1.90841457]
[1760029171633,0.284,119900.0,119890.0,2.35900687]
[1760029171829,0.284,119900.0,119890.0,2.75401457]
[1760029172029,0.284,119900.0,119890.0,2.35888687]
[1760029172233,0.284,119900.0,119890.0,1.90641457]
[1760029172434,0.284,119900.0,119890.0,2.75369457]
[1760029172832,0.144,119900.0,119890.0,2.5033754]
[1760029173135,0.03149139,119950.0,119920.0,0.05521]
[1760029173332,0.29149139,119950.0,119940.0,0.3608]
[1760029173528,0.29149139,119950.0,119940.0,0.55048687]
[1760029173729,0.29149139,119950.0,119940.0,0.95497413]
[1760029174030,0.29149139,119950.0,119940.0,1.35497413]
[1760029174228,0.26,119950.0,119940.0,1.35497413]
[1760029174431,0.262,119950.0,119940.0,1.41018413]
[1760029174626,0.264,119950.0,119940.0,1.41018413]
[1760029174829,0.67190603,119950.0,119940.0,0.95497413]
[1760029175027,0.27689833,119950.0,119940.0,2.25562413]
[1760029175427,0.27689833,119950.0,119940.0,1.41018413]
[1760029175632,0.27689833,119950.0,119940.0,2.25582413]
[1760029175833,0.27689833,119950.0,119940.0,1.80081413]
[1760029176025,0.27689833,119950.0,119940.0,1.80061413]
[1760029176534,0.27689833,119950.0,119940.0,1.80045413]
[1760029176837,0.27689833,119950.0,119940.0,1.85566413]
[1760029177035,0.27689833,119950.0,119940.0,2.65067183]
[1760029177240,0.27689833,119950.0,119940.0,2.25566413]
[1760029177435,0.27689833,119950.0,119940.0,1.41018413]
[1760029177733,0.27689833,119950.0,119940.0,2.25498413]
[1760029177939,0.27689833,119950.0,119940.0,2.64999183]
[1760029178433,0.27689833,119950.0,119940.0,2.73332473]
[1760029178736,0.27689833,119950.0,119850.0,0.0449]
[1760029178737,0.3608,119940.0,119850.0,0.0449]
[1760029178934,0.3608,119880.0,119860.0,0.3950077]
[1760029179128,0.3608,119880.0,119870.0,0.63744]
[1760029179129,0.3,119880.0,119870.0,0.63744]
[1760029179431,0.3,119880.0,119870.0,0.6716477]
[1760029179639,0.3,119880.0,119870.0,1.03744]
[1760029179830,0.3,119880.0,119870.0,1.4324477]
[1760029180138,0.3,119880.0,119870.0,2.0151677]
[1760029180832,0.021,119880.0,119870.0,2.0151677]
[1760029181336,0.001,119880.0,119870.0,2.0151677]
[1760029181732,0.7558077,119910.0,119870.0,2.0151677]
[1760029181935,1.0608,119910.0,119880.0,0.3608]
[1760029182136,1.0608,119910.0,119890.0,0.85788]
[1760029182335,0.6608,119910.0,119890.0,1.21868]
[1760029182534,1.0608,119910.0,119890.0,0.3608]
[1760029182834,0.6608,119910.0,119900.0,0.85736]
[1760029183039,1.0608,119910.0,119900.0,0.85736]
[1760029183238,1.0618,119910.0,119900.0,0.85736]
[1760029183639,0.3,119910.0,119900.0,0.85736]
[1760029183838,0.3,119910.0,119890.0,0.7558077]
[1760029184134,1.0608,119910.0,119900.0,0.85628]
[1760029184739,1.0608,119910.0,119880.0,0.3950077]
[1760029184936,0.3608,119900.0,119890.0,0.85556]
[1760029185143,0.27,119900.0,119890.0,1.6947354]
[1760029185637,0.6308,119900.0,119890.0,1.2554]
[1760029185938,0.27,119900.0,119890.0,1.3387677]
[1760029186136,0.27,119900.0,119890.0,0.4833677]
[1760029186336,0.27,119900.0,119890.0,1.3384877]
[1760029186640,0.27,119900.0,119890.0,0.0833677]
[1760029186834,0.27,119900.0,119890.0,0.9380477]
[1760029187835,0.27,119900.0,119870.0,2.921666]
[1760029187836,1.0258077,119900.0,119870.0,2.921666]
[1760029188036,0.3608,119890.0,119880.0,0.85312]
[1760029188235,0.6608,119890.0,119880.0,0.9364947]
[1760029188631,0.3,119890.0,119880.0,0.85312]
[1760029188936,0.6608,119890.0,119880.0,0.85312]
[1760029189338,0.6608,119890.0,119870.0,0.478385]
[1760029189539,0.6608,119890.0,119880.0,0.9365347]
[1760029189835,0.6608,119890.0,119870.0,0.3950077]
[1760029189836,1.0608,119890.0,119870.0,0.3950077]
[1760029190043,1.0608,119890.0,119880.0,0.85196]
[1760029190541,1.0608,119890.0,119880.0,0.9353347]
[1760029190937,1.0608,119890.0,119880.0,2.0911424]
[1760029190938,0.3,119890.0,119880.0,2.0911424]
[1760029191142,0.3608,119930.0,119900.0,0.0833571]
[1760029191445,1.0608,119930.0,119910.0,1.690399]
[1760029191633,1.0608,119930.0,119910.0,0.4441513]
[1760029191837,0.7608,119920.0,119900.0,0.4441567]
[1760029192038,1.0408,119920.0,119910.0,0.85076]
[1760029192238,1.0408,119920.0,119910.0,0.9341138]
[1760029192442,0.68,119920.0,119910.0,1.2949138]
[1760029192940,0.28,119920.0,119910.0,1.2949138]
[1760029193143,0.28,119920.0,119910.0,1.70324852]
[1760029193345,0.37369833,119950.0,119930.0,0.0833343]
[1760029193542,0.72289833,119950.0,119940.0,0.933093]
[1760029194042,1.08369833,119950.0,119940.0,0.84976]
[1760029194441,1.47870603,119950.0,119940.0,0.84908]
[1760029194842,1.08369833,119950.0,119940.0,0.84908]
[1760029195740,0.72289833,119950.0,119940.0,0.932413]
[1760029195940,1.08369833,119950.0,119940.0,0.84908]
[1760029196141,0.72289833,119950.0,119940.0,0.932413]
[1760029196838,0.71,119950.0,119940.0,1.6048877]
[1760029197039,0.71,119950.0,119940.0,0.84908]
[1760029197344,0.71,119950.0,119940.0,0.932413]
[1760029197638,1.0708,119950.0,119940.0,0.932413]
[1760029197940,1.4658077,119950.0,119910.0,0.4441507]
[1760029198132,0.3608,119940.0,119910.0,0.45248542]
[1760029198338,0.28,119940.0,119910.0,0.76414242]
[1760029198645,0.7608,119930.0,119920.0,0.846]
[1760029198833,1.0408,119930.0,119920.0,0.846]
[1760029199238,0.68,119930.0,119920.0,0.84592]
[1760029199440,1.0408,119930.0,119900.0,0.4608]
[1760029199640,0.3608,119920.0,119910.0,0.77052]
[1760029199936,1.0208,119920.0,119910.0,0.77052]
[1760029200143,1.0208,119920.0,119910.0,0.76952]
[1760029200440,1.8158077,119920.0,119900.0,0.1]
[1760029200640,0.3608,119910.0,119900.0,0.94496]
[1760029200838,1.4358077,119910.0,119900.0,0.1]
[1760029201440,1.0408,119910.0,119900.0,0.1]
[1760029201636,0.68,119910.0,119900.0,0.1863608]
[1760029201835,1.8358077,119910.0,119900.0,0.103]
[1760029202436,1.8358077,119910.0,119900.0,0.104]
[1760029202645,1.4408,119910.0,119900.0,0.104]
[1760029202843,1.4358077,119910.0,119850.0,0.4057]
[1760029203042,0.6568,119860.0,119820.0,2.5263328]
[1760029203242,0.3608,119850.0,119830.0,0.9269683]
[1760029203441,0.9168,119850.0,119840.0,0.00833472]
[1760029203842,1.7118077,119850.0,119840.0,0.0032]
[1760029204346,1.3168,119850.0,119840.0,0.0032]
[1760029205549,1.4281968,119850.0,119840.0,0.001]
[1760029205749,2.29316136,119850.0,119840.0,0.001]
[1760029206139,0.6331891,119850.0,119840.0,0.001]
[1760029206347,1.0281968,119850.0,119840.0,0.001]
[1760029207045,0.6331891,119850.0,119840.0,0.001]
[1760029207446,0.26,119850.0,119840.0,0.4844025]
[1760029208049,0.26,119850.0,119840.0,0.401]
[1760029208248,1.0158077,119850.0,119840.0,0.001]
[1760029208445,0.6208,119850.0,119840.0,0.84184]
[1760029208641,0.6208,119850.0,119840.0,0.001]
[1760029208642,1.4158077,119850.0,119840.0,0.001]
[1760029208846,1.88743039,119850.0,119840.0,0.001]
[1760029209047,2.28243809,119850.0,119840.0,0.001]
[1760029209249,0.65933969,119850.0,119840.0,0.001]
[1760029209547,1.05534739,119850.0,119810.0,1.23577916]
[1760029209747,0.3608,119840.0,119810.0,0.84077146]
[1760029209947,0.3608,119830.0,119810.0,0.84077146]
[1760029210149,0.3608,119820.0,119810.0,0.84077146]
[1760029210345,1.5972077,119820.0,119810.0,5.146e-05]
[1760029210546,2.72809103,119820.0,119770.0,0.00911059]
[1760029210742,0.7558077,119780.0,119770.0,0.00911059]
[1760029210948,1.54035563,119780.0,119770.0,0.00833472]
[1760029211142,1.9094877,119780.0,119760.0,0.04684571]
[1760029211347,0.3560007,119770.0,119760.0,0.04684571]
[1760029211551,1.0510084,119770.0,119760.0,0.05518043]
[1760029212044,1.4510084,119770.0,119740.0,0.00833472]
[1760029212244,0.7216,119750.0,119730.0,0.09181332]
[1760029212444,0.36088805,119740.0,119730.0,0.00833472]
[1760029212640,0.36088805,119740.0,119720.0,1.5834829]
[1760029212641,0.64088805,119740.0,119720.0,2.34292]
[1760029212851,0.64088805,119740.0,119720.0,2.4264061]
[1760029213242,0.64088805,119740.0,119730.0,0.0834792]
[1760029213449,8.805e-05,119740.0,119730.0,0.8442792]
[1760029213643,8.805e-05,119740.0,119730.0,1.15851323]
[1760029213844,8.805e-05,119740.0,119730.0,0.8442792]
[1760029214152,0.3608,119770.0,119750.0,0.0834653]
[1760029214349,0.3608,119760.0,119730.0,0.9285984]
[1760029214649,0.3608,119750.0,119730.0,1.20892]
[1760029214853,0.6808,119750.0,119730.0,0.84812]
[1760029215056,0.6808,119750.0,119730.0,0.9255989]
[1760029215250,0.6808,119750.0,119730.0,1.63982953]
[1760029215453,0.6808,119750.0,119730.0,0.9255983]
[1760029215654,0.32,119750.0,119740.0,0.0834722]
[1760029215960,0.7652678,119750.0,119730.0,0.84328]
[1760029216154,0.3608,119740.0,119730.0,0.84356]
[1760029216349,0.28,119740.0,119730.0,0.84356]
[1760029216551,0.6408,119740.0,119730.0,0.84356]
[1760029216953,0.6408,119740.0,119730.0,0.9270392]
[1760029217154,0.28,119740.0,119730.0,0.84356]
[1760029217349,0.6408,119740.0,119730.0,0.84356]
[1760029217550,0.6408,119740.0,119720.0,1.5]
[1760029217750,0.6408,119740.0,119730.0,0.84264]
[1760029217951,1.0016,119740.0,119730.0,0.84252]
[1760029218166,0.28,119740.0,119730.0,0.84252]
[1760029218756,0.3608,119770.0,119730.0,1.91755403]
[1760029218955,0.28,119770.0,119760.0,0.75849233]
[1760029219160,0.3608,119810.0,119790.0,0.0834348]
[1760029219454,0.24,119810.0,119800.0,2.00066003]
[1760029219756,0.0833701,119890.0,119800.0,2.00066003]
[1760029219757,0.3608,119870.0,119840.0,0.0834026]
[1760029219958,0.6508,119870.0,119860.0,0.0833887]
[1760029220160,0.3608,119900.0,119880.0,0.0833683]
[1760029220357,0.3608,119900.0,119890.0,1.2876878]
[1760029220358,0.28,119900.0,119890.0,1.2876878]
[1760029220660,0.28,119900.0,119870.0,0.3608]
[1760029220866,0.3608,119930.0,119890.0,0.75839973]
[1760029221158,0.3608,119920.0,119900.0,0.84384]
[1760029221357,0.3608,119920.0,119910.0,0.4441539]
[1760029221358,0.29,119920.0,119910.0,0.4441539]
[1760029221554,0.29,119920.0,119910.0,0.76672265]
[1760029221755,0.29,119920.0,119910.0,1.16672265]
[1760029221955,0.29,119920.0,119910.0,0.7608]
[1760029222161,0.29,119920.0,119910.0,0.4441539]
[1760029222357,0.3608,119960.0,119910.0,1.92708875]
[1760029222564,0.3608,119950.0,119920.0,0.4441442]
[1760029222756,0.3608,119950.0,119910.0,2.08376]
[1760029222757,0.3608,119930.0,119910.0,2.08376]
[1760029222956,0.3608,119930.0,119920.0,1.20404]
[1760029222957,0.31,119930.0,119920.0,1.20404]
[1760029223164,0.31,119930.0,119920.0,1.2873869]
[1760029223354,0.31,119930.0,119920.0,1.6872669]
[1760029223555,0.31,119930.0,119920.0,0.67503403]
[1760029223762,0.31,119930.0,119920.0,2.00110093]
[1760029224061,0.31,119930.0,119920.0,1.15838093]
[1760029224264,0.18249228,120070.0,119950.0,0.0833261]
[1760029224265,0.3608,119970.0,119950.0,0.0833261]
[1760029224463,0.27,119970.0,119960.0,0.31423403]
[1760029224661,0.27,119970.0,119960.0,3.05771403]
[1760029224860,0.27,119970.0,119960.0,3.50183313]
[1760029225264,0.3608,120000.0,119960.0,2.65835313]
[1760029225464,0.31,120000.0,119990.0,0.67503403]
[1760029225667,0.31,120000.0,119990.0,1.60117233]
[1760029225867,0.3608,120020.0,120000.0,0.0832902]
[1760029226066,0.29,120020.0,120010.0,1.60127843]
[1760029226368,0.6508,120020.0,119990.0,0.3608]
[1760029226560,0.6508,120020.0,119990.0,0.75833103]
[1760029226766,0.6508,120020.0,120000.0,0.8426]
[1760029227066,0.3608,120010.0,119990.0,0.31423403]
[1760029227367,0.6608,120010.0,120000.0,0.8424]
[1760029227870,0.6608,120010.0,120000.0,0.84168]
[1760029228073,0.3,120010.0,120000.0,1.60248]
[1760029228365,0.3,120010.0,120000.0,1.6857714]
[1760029228565,0.3608,120050.0,120020.0,0.0832746]
[1760029228766,0.32,120050.0,120030.0,0.84148]
[1760029228973,0.6808,120050.0,120030.0,0.84148]
[1760029229165,0.6808,120050.0,120010.0,0.0832841]
[1760029229166,0.3608,120040.0,120010.0,0.0832841]
[1760029229466,0.27,120040.0,120020.0,0.924796]
[1760029229672,0.27,120040.0,120020.0,0.0832722]
[1760029229868,0.27,120040.0,120030.0,0.9243506]
[1760029230071,0.001,120050.0,120040.0,0.0832636]
[1760029230263,0.001,120050.0,120040.0,0.8440636]
[1760029231073,0.36315409,120150.0,120040.0,0.8440636]
[1760029231074,0.3608,120100.0,120060.0,0.0832436]
[1760029231275,0.3608,120100.0,120080.0,0.3608]
[1760029231276,0.31,120100.0,120080.0,0.3608]
[1760029231478,0.31,120100.0,120090.0,0.84064]
[1760029231884,0.31,120100.0,120080.0,0.3608]
[1760029232176,0.3608,120090.0,120070.0,2.4424]
[1760029232375,0.3608,120080.0,120040.0,0.69170426]
[1760029232570,0.3608,120080.0,120050.0,0.8406]
[1760029232571,0.3608,120060.0,120050.0,0.8406]
[1760029232875,0.3608,120080.0,120050.0,0.3608]
[1760029233075,0.001,120050.0,120020.0,0.41086656]
[1760029233271,0.3608,120040.0,120030.0,0.8414]
[1760029233672,0.001,120050.0,120030.0,0.8414]
[1760029233871,0.3608,120080.0,120050.0,0.09158616]
[1760029234181,0.26,120080.0,120070.0,0.0832428]
[1760029234474,0.6208,120080.0,120050.0,0.0832515]
[1760029234674,0.6208,120080.0,120060.0,0.84112]
[1760029234874,0.3608,120070.0,120060.0,0.84112]
[1760029235075,0.6208,120070.0,120020.0,0.41424753]
[1760029235279,0.3608,120060.0,120030.0,1.01708]
[1760029235481,0.28,120060.0,120050.0,0.09158616]
[1760029235673,0.3608,120080.0,120060.0,0.0832488]
[1760029235875,0.6508,120080.0,120070.0,0.84324]
[1760029236581,1.0508,120080.0,120050.0,0.84264]
[1760029236776,1.0508,120080.0,120020.0,6.657e-05]
[1760029236777,0.7216,120060.0,120020.0,6.657e-05]
[1760029236979,0.3608,120040.0,120030.0,0.8436]
[1760029237180,0.28,120040.0,120030.0,0.8436]
[1760029237380,0.6408,120040.0,120030.0,0.8436]
[1760029237772,0.28,120040.0,120030.0,0.9268706]
[1760029238078,0.3608,120070.0,120040.0,0.0832617]
[1760029238279,0.3608,120060.0,120040.0,0.3608]
[1760029238477,0.6208,120060.0,120050.0,0.8158]
[1760029239078,1.0208,120060.0,120030.0,0.002]
[1760029239275,0.71326806,120040.0,120030.0,0.002]
[1760029239478,0.98326806,120040.0,120030.0,0.002]
[1760029239680,0.6308,120040.0,120030.0,0.002]
[1760029239979,0.6308,120040.0,120030.0,0.001]
[1760029240177,0.27,120040.0,120030.0,0.0832706]
[1760029240376,0.27,120040.0,120030.0,0.8440706]
[1760029240584,0.3608,120070.0,120040.0,0.0832579]
[1760029240781,0.3608,120060.0,120050.0,0.9254966]
[1760029240979,0.26,120060.0,120050.0,0.9254966]
[1760029241186,0.26,120060.0,120050.0,1.6862966]
[1760029241485,0.3608,120080.0,120060.0,0.0832474]
[1760029241689,0.6308,120080.0,120070.0,0.84176]
[1760029242188,0.27,120080.0,120070.0,1.6858028]
[1760029242381,0.3608,120110.0,120070.0,1.20256]
[1760029242578,0.6508,120110.0,120080.0,0.4440349]
[1760029242780,0.6508,120110.0,120090.0,0.84164]
[1760029242981,0.3608,120100.0,120090.0,0.84164]
[1760029243181,0.6308,120100.0,120070.0,0.0832426]
[1760029243377,0.3608,120080.0,120060.0,2.1634496]
[1760029243687,0.3608,120070.0,120050.0,0.0832562]
[1760029243986,0.6408,120070.0,120060.0,0.84132]
[1760029244382,0.28,120070.0,120060.0,0.9245698]
[1760029244589,0.28,120070.0,120060.0,1.2853698]
[1760029244778,0.3618,120110.0,120060.0,1.6853698]
[1760029244984,0.6518,120110.0,120080.0,0.0832351]
[1760029245180,0.3608,120100.0,120090.0,0.84052]
[1760029245396,0.31,120100.0,120090.0,0.923749]
[1760029245887,0.31,120100.0,120090.0,0.844029]
[1760029246191,0.001,120110.0,120100.0,0.083222]
[1760029246385,0.301,120110.0,120100.0,1.284542]
[1760029246584,0.001,120110.0,120100.0,0.844022]
[1760029246780,0.3608,120140.0,120120.0,0.0832045]